bitfinex/quotes_SOLUSD_20250908
["timestamp","ask_amount","ask_price","bid_price","bid_amount"]
[1757311675872,38.5,206.96,206.94,0.67]
[1757311676070,38.5,206.96,206.92,0.67]
[1757311676589,3.78843272,206.95,206.89,8.62191094]
[1757311676889,3.78843272,206.95,206.9,0.67]
[1757311677095,3.78843272,206.95,206.91,0.67]
[1757311677287,3.96843272,206.95,206.89,5.50347822]
[1757311677599,3.78843272,206.95,206.89,5.50347822]
[1757311677897,3.78843272,206.95,206.89,9.29191094]
[1757311678195,3.78843272,206.95,206.9,0.67]
[1757311678494,3.78843272,206.95,206.91,0.67]
[1757311678691,38.5,206.96,206.91,0.67]
[1757311678877,3.78843272,206.95,206.91,0.67]
[1757311679783,42.28843272,206.96,206.91,0.67]
[1757311680590,42.28843272,206.96,206.92,0.67]
[1757311680802,38.5,206.96,206.91,8.62143373]
[1757311681009,38.5,206.96,206.93,0.67]
[1757311681386,42.28843272,206.96,206.91,5.50300101]
[1757311681587,42.28843272,206.96,206.91,0.67]
[1757311682310,3.78843272,206.94,206.88,84.55843272]
[1757311682891,3.78843272,206.94,206.89,0.67]
[1757311683093,3.78843272,206.94,206.9,0.67]
[1757311683519,3.78843272,206.95,206.89,3.78843272]
[1757311683701,3.78843272,206.95,206.91,0.67]
[1757311683906,3.78843272,206.95,206.89,3.78843272]
[1757311684215,55.66567007,206.96,206.91,8.6214519]
[1757311684400,55.66567007,206.96,206.92,0.67]
[1757311684589,55.66567007,206.96,206.93,0.67]
[1757311684906,55.66567007,206.96,206.91,9.3214519]
[1757311685105,55.66567007,206.96,206.92,0.67]
[1757311685489,55.66567007,206.96,206.93,0.65]
[1757311686702,17.16567007,206.96,206.93,4.83252735]
[1757311687018,55.54567007,206.96,206.94,0.65]
[1757311687317,55.54567007,206.96,206.93,8.62096007]
[1757311687318,55.54567007,206.96,206.95,0.65]
[1757311687897,17.16567007,206.96,206.95,0.65]
[1757311688499,17.16567007,206.96,206.95,22.86611177]
[1757311688704,15.72567007,206.96,206.95,102.96611177]
[1757311689091,15.72567007,206.96,206.95,117.47463553]
[1757311690818,0.06,207.02,207.01,26.0]
[1757311691042,0.06,207.02,207.01,30.43843272]
[1757311691519,0.06,207.02,207.01,26.65]
[1757311691698,0.06,207.02,207.01,30.43843272]
[1757311691900,0.06,207.02,207.01,35.26911722]
[1757311692418,0.06,207.02,207.01,48.86471123]
[1757311693024,0.06,207.05,207.03,26.0]
[1757311693025,0.74,207.05,207.03,26.0]
[1757311693392,0.06,207.05,207.03,29.78843272]
[1757311693816,0.06,207.05,207.04,3.78843272]
[1757311694221,0.74,207.05,207.02,3.78843272]
[1757311694418,0.68,207.04,207.02,3.78843272]
[1757311694997,0.68,207.03,207.0,3.78843272]
[1757311695216,0.68,207.02,207.01,26.0]
[1757311695416,0.68,207.02,206.99,83.88843272]
[1757311696109,42.88843272,207.01,206.96,3.78843272]
[1757311696409,0.68,207.0,206.96,3.78843272]
[1757311696615,0.68,206.99,206.95,29.78843272]
[1757311697108,0.68,206.99,206.95,34.62047403]
[1757311698408,0.68,206.98,206.95,26.0]
[1757311698608,0.68,206.97,206.95,26.0]
[1757311699509,0.68,206.99,206.95,26.0]
[1757311699709,0.68,206.98,206.95,26.0]
[1757311700515,0.68,206.98,206.95,30.83207929]
[1757311701628,0.68,206.98,206.95,26.0]
[1757311704221,3.78843272,207.0,206.95,30.83207504]
[1757311704418,39.1,207.01,206.96,4.43843272]
[1757311704616,0.68,207.01,206.97,0.65]
[1757311704932,38.32,207.04,207.0,3.78843272]
[1757311705128,38.32,207.04,207.01,0.65]
[1757311705308,38.32,207.04,207.0,3.78843272]
[1757311705513,38.38,207.04,207.0,3.78843272]
[1757311705739,39.06,207.04,207.0,4.43843272]
[1757311705909,39.06,207.04,207.0,9.26930375]
[1757311706114,3.78843272,207.01,206.95,119.64033256]
[1757311706315,3.78843272,207.01,206.95,34.65039462]
[1757311706526,4.46843272,207.01,206.97,26.0]
[1757311706724,4.46843272,207.01,206.95,34.65039462]
[1757311707429,0.68,207.01,206.95,34.65039462]
[1757311707611,4.46843272,207.01,206.95,35.30039462]
[1757311708424,0.68,207.01,206.97,4.8316181]
[1757311708625,0.74,207.04,206.99,3.78843272]
[1757311708822,38.4,207.04,207.0,0.65]
[1757311709029,39.08,207.04,207.0,4.43843272]
[1757311709710,39.08,207.04,207.0,0.65]
[1757311710114,39.08,207.04,206.99,8.61952771]
[1757311710423,39.08,207.04,206.99,9.26952771]
[1757311711052,38.4,207.04,206.99,5.48109499]
[1757311711216,0.68,207.03,206.99,9.26952771]
[1757311711532,38.4,207.04,206.99,9.26952771]
[1757311711738,39.08,207.04,206.99,9.26952771]
[1757311711913,39.08,207.04,206.99,89.36952771]
[1757311712428,38.4,207.04,206.99,89.36952771]
[1757311712633,0.68,207.03,206.99,88.71952771]
[1757311712833,38.4,207.04,206.99,88.71952771]
[1757311712834,0.68,207.02,206.99,80.1]
[1757311713034,0.68,207.01,206.99,80.1]
[1757311713242,0.68,207.0,206.99,80.1]
[1757311714535,4.46843272,207.0,206.99,80.1]
[1757311716727,3.78843272,207.01,206.99,80.1]
[1757311717445,3.78843272,207.02,206.99,80.1]
[1757311717749,4.45843272,207.02,206.99,80.1]
[1757311718041,4.45843272,207.02,206.97,4.83157818]
[1757311718245,4.45843272,207.02,206.97,5.53157818]
[1757311718545,0.67,207.01,206.96,3.78843272]
[1757311718751,4.45843272,207.01,206.96,4.48843272]
[1757311720042,3.78843272,207.01,206.97,0.7]
[1757311720244,4.45843272,207.01,206.96,8.62020649]
[1757311720426,4.45843272,207.01,206.96,9.32020649]
[1757311721433,0.67,207.0,206.96,4.48843272]
[1757311721633,0.67,207.0,206.96,0.7]
[1757311722745,0.67,206.99,206.95,80.13]
[1757311723050,0.67,206.98,206.95,80.13]
[1757311723945,3.78843272,207.0,206.95,80.13]
[1757311723946,4.45843272,207.0,206.95,80.13]
[1757311724146,4.45843272,207.0,206.95,84.96205729]
[1757311724362,3.78843272,207.02,206.96,4.48843272]
[1757311724654,3.78843272,207.02,206.97,0.7]
[1757311724852,4.45843272,207.03,206.98,4.83138467]
[1757311725030,4.45843272,207.03,206.98,5.53138467]
[1757311725864,0.67,207.02,206.98,5.53138467]
[1757311727732,3.78843272,207.03,206.99,0.7]
[1757311727932,4.45843272,207.03,206.99,0.7]
[1757311728152,0.67,207.02,206.97,5.5316181]
[1757311728351,0.67,207.02,206.98,0.7]
[1757311728757,38.77,207.02,206.98,0.7]
[1757311729150,38.1,207.02,206.98,4.83128831]
[1757311729349,38.1,207.02,206.99,0.7]
[1757311729751,38.77,207.02,206.99,0.7]
[1757311729943,38.77,207.02,206.98,4.83128831]
[1757311730259,38.77,207.02,206.98,0.7]
[1757311731138,42.55843272,207.02,206.98,0.7]
[1757311731641,41.88843272,207.02,206.98,0.7]
[1757311731833,0.67,207.01,206.96,89.4502596]
[1757311732040,0.67,207.01,206.97,5.531477]
[1757311732241,0.67,207.01,206.98,0.7]
[1757311732242,38.73,207.01,206.98,0.7]
[1757311732657,38.73,207.01,206.97,4.831477]
[1757311732840,38.06,207.01,206.98,0.7]
[1757311733552,38.06,207.01,206.98,5.53136547]
[1757311734956,38.73,207.01,206.98,4.83136547]
[1757311735438,38.73,207.01,206.97,7.25364418]
[1757311736146,38.69,207.01,206.98,0.7]
[1757311736351,38.69,207.01,206.97,7.95364418]
[1757311737563,38.69,207.01,206.98,5.53128743]
[1757311737759,38.02,207.01,206.99,0.7]
[1757311738062,38.02,207.01,206.99,26.0]
[1757311738366,38.69,207.01,206.98,4.83128743]
[1757311738662,38.69,207.01,206.97,88.05363252]
[1757311740040,0.67,207.0,206.97,87.35363252]
[1757311740349,0.67,207.0,206.96,0.03]
[1757311740556,0.67,206.99,206.96,0.03]
[1757311740747,0.67,206.99,206.96,4.86183031]
[1757311741147,0.67,207.0,206.96,5.56183031]
[1757311741349,38.02,207.01,206.98,28.42202674]
[1757311741657,38.02,207.01,206.98,29.12202674]
[1757311742080,0.06,207.04,207.0,2.42202674]
[1757311742369,38.02,207.03,207.01,3.12202674]
[1757311742570,38.02,207.03,207.0,2.42202674]
[1757311742752,38.02,207.03,207.0,3.12202674]
[1757311743068,38.02,207.03,207.01,3.12202674]
[1757311743474,38.02,207.03,207.02,28.42202674]
[1757311743648,0.06,207.04,207.03,26.0]
[1757311743851,0.06,207.04,207.03,29.12202674]
[1757311744054,0.06,207.04,207.03,47.54783859]
[1757311745962,0.06,207.04,207.03,45.12581185]
[1757311746149,0.06,207.04,207.03,47.54783859]
[1757311747658,0.06,207.04,207.03,127.64783859]
[1757311749069,0.06,207.04,207.03,180.11145241]
[1757311749575,0.06,207.05,207.03,180.11145241]
[1757311749761,0.06,207.07,207.05,13.59559401]
[1757311749959,0.06,207.07,207.06,16.01762075]
[1757311750167,0.06,207.07,207.05,106.1]
[1757311750359,0.73,207.07,207.06,2.42202674]
[1757311751170,0.06,207.07,207.06,7.25154475]
[1757311751555,0.06,207.07,207.06,2.42202674]
[1757311751967,0.73,207.07,207.06,2.42202674]
[1757311752555,0.73,207.07,207.05,106.1]
[1757311752753,3.09202674,207.06,206.97,0.03]
[1757311753067,2.42202674,207.03,206.97,0.03]
[1757311753270,0.67,207.06,206.97,4.85844243]
[1757311753271,40.44202674,207.02,206.97,4.85844243]
[1757311753483,2.42202674,207.0,206.97,4.85844243]
[1757311753776,0.67,206.99,206.97,0.03]
[1757311754677,3.09202674,206.99,206.97,0.03]
[1757311754850,2.42202674,207.0,206.97,0.03]
[1757311755053,0.67,206.98,206.97,0.03]
[1757311757574,3.09202674,206.98,206.97,0.03]
[1757311759172,0.67,206.98,206.97,0.03]
[1757311760377,12.07291775,207.08,206.97,0.03]
[1757311760578,0.67,207.0,206.97,0.03]
[1757311760757,38.65,207.0,206.97,0.03]
[1757311761262,0.67,206.99,206.97,0.03]
[1757311763955,40.40202674,207.0,206.97,0.03]
[1757311764159,0.67,206.99,206.97,0.03]
[1757311765883,3.09202674,206.99,206.97,0.03]
[1757311766091,2.42202674,206.99,206.97,0.03]
[1757311766385,0.67,206.98,206.97,0.03]
[1757311766775,3.09202674,206.98,206.97,0.03]
[1757311770281,38.59,206.98,206.97,0.03]
[1757311770880,37.92,206.98,206.97,0.03]
[1757311771088,0.67,207.04,206.98,26.0]
[1757311771268,37.92,207.03,207.0,2.42202674]
[1757311771461,0.06,207.05,206.97,80.13]
[1757311771782,0.06,207.05,207.0,2.42202674]
[1757311771783,37.94,207.04,207.0,2.42202674]
[1757311772081,0.06,207.05,207.02,2.42202674]
[1757311772287,38.06,207.05,207.02,3.11202674]
[1757311772458,0.67,207.04,207.0,26.0]
[1757311772663,0.67,207.03,207.0,26.0]
[1757311772876,0.67,207.02,207.0,26.0]
[1757311773084,0.67,207.03,207.0,26.0]
[1757311773480,38.06,207.05,207.0,33.94282974]
[1757311773661,38.73,207.05,207.0,33.94282974]
[1757311773860,38.06,207.05,207.0,33.94282974]
[1757311774083,0.67,207.04,207.0,31.520803]
[1757311774388,0.67,207.03,207.0,26.0]
[1757311774601,38.73,207.05,207.0,33.94292706]
[1757311775881,38.73,207.05,207.0,29.11202674]
[1757311775882,38.06,207.05,207.0,29.11202674]
[1757311776073,0.68,207.04,207.0,26.0]
[1757311776272,0.68,207.03,207.0,26.0]
[1757311776474,2.42202674,207.04,207.0,26.0]
[1757311776475,0.68,207.02,207.0,26.0]
[1757311776671,2.42202674,207.03,206.97,100.18064798]
[1757311776874,2.42202674,207.03,206.97,88.09344927]
[1757311777193,0.68,207.02,206.97,88.09344927]
[1757311777368,38.66,207.01,206.97,88.09344927]
[1757311778585,37.98,207.01,206.97,88.09344927]
[1757311779169,38.66,207.01,206.97,84.96142253]
[1757311779975,0.68,207.0,206.97,80.13]
[1757311780196,0.68,206.99,206.97,0.03]
[1757311780376,40.40202674,207.01,206.97,0.03]
[1757311780377,0.68,207.0,206.97,0.03]
[1757311781188,40.40202674,207.01,206.97,0.74]
[1757311781491,40.40202674,207.01,206.97,0.03]
[1757311781791,41.08202674,207.01,206.97,0.03]
[1757311782086,40.40202674,207.01,206.97,0.03]
[1757311782270,41.08202674,207.01,206.97,0.03]
[1757311782469,41.08202674,207.01,206.97,4.86159737]
[1757311782672,37.98,207.01,206.98,0.71]
[1757311782865,37.92,207.0,206.99,0.71]
[1757311783088,37.92,207.0,206.97,7.99362411]
[1757311783611,37.92,207.0,206.98,0.71]
[1757311784372,37.92,207.0,206.98,5.5413392]
[1757311786302,37.92,207.0,206.97,84.96157029]
[1757311786503,37.92,207.0,206.97,85.67157029]
[1757311786806,37.88,206.99,206.97,85.67157029]
[1757311790214,37.88,206.99,206.97,114.09359703]
[1757311791292,37.88,206.99,206.97,111.67157029]
[1757311791491,0.68,207.02,206.97,111.67157029]
[1757311791693,37.84,207.01,206.98,0.71]
[1757311793625,38.52,207.01,206.98,5.54132488]
[1757311793922,38.52,207.01,206.98,4.83132488]
[1757311794112,0.68,207.0,206.97,106.13]
[1757311794416,0.68,207.0,206.97,0.03]
[1757311794417,2.42202674,206.98,206.97,0.03]
[1757311794818,3.10202674,206.98,206.97,0.03]
[1757311796426,4.46616859,206.98,206.97,0.03]
[1757311798602,9.29755326,206.98,206.97,0.03]
[1757311799231,4.46616859,206.98,206.97,0.03]
[1757311800537,42.26616859,206.98,206.97,0.03]
[1757311800741,3.78616859,206.99,206.97,0.03]
[1757311800915,37.8,206.98,206.97,0.03]
[1757311801113,0.68,207.03,206.98,0.71]
[1757311801422,3.78616859,207.01,206.97,0.03]
[1757311801640,4.46616859,207.01,206.97,0.03]
[1757311801934,0.68,207.01,206.97,0.03]
[1757311802238,4.46616859,207.0,206.97,0.03]
[1757311802411,37.8,206.99,206.97,0.03]
[1757311802605,4.46616859,207.0,206.97,0.03]
[1757311802913,37.8,206.99,206.97,0.03]
[1757311803309,37.8,206.98,206.97,0.03]
[1757311804034,0.68,207.0,206.97,0.03]
[1757311804240,37.8,206.99,206.97,0.03]
[1757311804541,0.68,207.0,206.97,0.03]
[1757311804739,37.78,206.98,206.97,0.03]
[1757311805526,3.78616859,207.03,206.97,4.48616859]
[1757311805732,4.50616859,207.05,206.99,3.78616859]
[1757311806035,0.06,207.05,207.02,26.0]
[1757311806237,37.78,207.04,207.03,26.0]
[1757311808820,37.78,207.04,207.02,4.83030409]
[1757311810243,37.78,207.04,207.02,8.61647268]
[1757311813016,38.44,207.04,207.03,26.0]
[1757311813221,37.78,207.04,207.03,26.0]
[1757311814531,37.78,207.04,207.02,4.83036766]
[1757311815048,37.78,207.04,207.03,26.0]
[1757311816630,38.44,207.04,207.03,26.0]
[1757311816829,38.44,207.04,207.01,3.78616859]
[1757311817136,0.66,207.03,207.0,106.1]
[1757311817325,0.66,207.02,207.0,106.1]
[1757311817525,37.68,207.01,207.0,106.1]
[1757311817925,38.34,207.01,207.0,106.1]
[1757311818533,37.68,207.01,207.0,110.93091787]
[1757311821750,38.34,207.01,207.0,30.83091787]
[1757311822126,37.68,207.01,207.0,30.83091787]
[1757311824149,0.06,207.05,207.0,30.83091787]
[1757311824337,37.62,207.04,207.01,0.67]
[1757311824651,37.62,207.04,207.01,4.45616859]
[1757311824953,0.66,207.03,207.0,30.83091787]
[1757311825259,0.66,207.03,207.0,34.61708646]
[1757311825430,0.66,207.03,207.0,35.28708646]
[1757311825636,37.62,207.04,207.0,35.28708646]
[1757311825835,38.28,207.04,207.0,35.28708646]
[1757311826044,38.28,207.04,207.01,4.45616859]
[1757311826239,0.06,207.05,207.02,4.83045116]
[1757311826548,37.62,207.04,207.02,9.28661975]
[1757311827548,37.62,207.04,207.03,26.0]
[1757311827855,38.28,207.04,207.03,26.0]
[1757311828349,42.06616859,207.04,207.0,80.1]
[1757311828670,4.44616859,207.03,207.0,80.1]
[1757311828853,0.66,207.02,207.0,80.1]
[1757311829047,0.66,207.01,207.0,80.1]
[1757311829839,3.78616859,207.03,207.0,80.1]
[1757311830042,0.66,207.02,207.0,80.1]
[1757311830639,0.66,207.02,207.0,84.93089147]
[1757311830939,42.06616859,207.04,207.0,84.93089147]
[1757311831161,0.66,207.03,207.0,80.1]
[1757311831455,0.66,207.02,207.0,80.1]
[1757311831854,37.62,207.04,207.0,80.1]
[1757311831855,42.06616859,207.04,207.0,80.1]
[1757311832054,0.66,207.03,207.0,80.1]
[1757311833161,0.66,207.02,207.0,84.93091719]
[1757311833347,0.66,207.02,207.0,80.1]
[1757311833546,0.66,207.02,206.99,4.83113078]
[1757311833948,0.66,207.02,207.0,0.03]
[1757311834865,42.06616859,207.04,207.0,26.7]
[1757311835578,37.62,207.03,207.0,30.48616859]
[1757311836561,0.69,207.02,207.0,0.03]
[1757311836969,0.69,207.01,207.0,0.03]
[1757311837443,42.09616859,207.03,207.0,0.03]
[1757311837646,0.69,207.02,207.0,0.03]
[1757311840554,37.62,207.03,207.0,0.03]
[1757311840756,0.69,207.02,207.0,0.03]
[1757311841651,37.62,207.03,207.0,0.03]
[1757311841852,37.62,207.02,207.0,0.03]
[1757311842470,38.31,207.02,207.0,0.03]
[1757311842877,37.62,207.02,207.0,0.03]
[1757311843052,37.62,207.02,207.01,0.71]
[1757311843257,37.62,207.02,207.01,30.49616859]
[1757311843555,37.62,207.04,207.01,30.49616859]
[1757311843875,37.62,207.04,207.03,26.0]
[1757311844076,37.62,207.04,207.03,0.71]
[1757311844870,37.62,207.04,207.03,5.54021784]
[1757311845077,37.62,207.04,207.03,4.83021784]
[1757311845667,37.62,207.04,207.03,30.83021784]
[1757311845974,37.62,207.04,207.03,31.54021784]
[1757311846660,37.62,207.04,207.03,30.83021784]
[1757311850079,0.06,207.05,207.03,35.32638643]
[1757311850286,0.06,207.05,207.04,4.49616859]
[1757311851061,0.06,207.05,207.04,9.32615313]
[1757311851386,0.06,207.05,207.04,89.42615313]
[1757311851961,0.06,207.05,207.04,103.02174714]
[1757311856375,0.06,207.05,207.04,101.65544774]
[1757311856575,0.06,207.05,207.04,99.23557855]
[1757311856776,0.06,207.05,207.04,101.65544774]
[1757311857697,0.06,207.05,207.04,130.65544774]
[1757311858784,0.06,207.05,207.04,87.34985373]
[1757311859188,0.06,207.05,207.04,88.05985373]
[1757311861199,0.06,207.05,207.04,87.34985373]
[1757311861692,0.06,207.05,207.04,88.05985373]
[1757311862974,0.06,207.05,207.04,87.34985373]
[1757311864876,0.06,207.05,207.04,88.05985373]
[1757311865273,0.06,207.07,207.04,101.65544774]
[1757311865478,0.06,207.07,207.06,2.41986919]
[1757311865873,0.06,207.07,207.06,16.6854632]
[1757311866081,0.06,207.07,207.06,96.7854632]
[1757311866491,0.06,207.07,207.06,94.36559401]
[1757311866696,0.06,207.07,207.06,96.7854632]
[1757311867385,0.06,207.07,207.06,101.61498121]
[1757311867796,0.06,207.07,207.06,130.61498121]
[1757311868188,0.06,207.07,207.06,129.94498121]
[1757311868990,0.06,207.07,207.06,131.87860942]
[1757311870581,0.06,207.07,207.06,132.54860942]
[1757311879993,0.77,207.07,207.06,129.45874023]
[1757311880187,0.77,207.07,207.06,82.03362821]
[1757311880507,0.77,207.07,207.06,80.1]
[1757311881101,0.77,207.07,207.04,2.44986919]
[1757311881302,0.71,207.06,207.04,2.44986919]
[1757311881585,0.71,207.05,207.04,0.03]
[1757311882005,0.71,207.05,207.01,0.03]
[1757311882006,2.41986919,207.04,207.01,0.03]
[1757311882195,2.41986919,207.02,206.99,1.82409569]
[1757311882400,2.41986919,207.0,206.96,0.03]
[1757311882594,2.41986919,206.99,206.96,0.03]
[1757311883111,3.02986919,206.99,206.96,0.03]
[1757311884112,7.86102045,206.99,206.96,0.03]
[1757311884313,19.03674527,206.99,206.96,0.03]
[1757311884610,28.41986919,206.97,206.96,0.03]
[1757311884999,29.02986919,206.97,206.96,0.03]
[1757311885188,33.86148729,206.97,206.96,0.03]
[1757311886908,35.79726778,206.97,206.96,0.03]
[1757311889013,71.13739859,206.97,206.96,0.03]
[1757311889229,73.55726778,206.97,206.96,0.03]
[1757311889722,87.15286179,206.97,206.96,0.03]
[1757311896241,32.76739859,206.97,206.96,0.03]
[1757311896539,70.48739859,206.97,206.96,0.03]
[1757311896742,72.90726778,206.97,206.96,0.03]
[1757311897533,73.51726778,206.97,206.96,0.03]
[1757311897729,72.90726778,206.97,206.96,0.03]
[1757311899732,70.97148729,206.97,206.96,0.03]
[1757311899934,72.90698677,206.97,206.96,0.03]
[1757311900320,70.97148729,206.97,206.96,0.03]
[1757311900633,66.13986919,206.97,206.96,0.03]
[1757311901028,1.93549948,206.99,206.96,0.03]
[1757311901241,2.41986919,206.97,206.96,0.75]
[1757311902420,37.72,206.98,206.96,0.75]
[1757311902735,37.7,206.97,206.96,0.75]
[1757311903728,37.7,206.97,206.96,5.58185156]
[1757311905648,37.7,206.97,206.96,0.75]
[1757311908843,37.76,206.97,206.96,0.75]
[1757311915533,37.76,206.97,206.96,0.03]
[1757311915739,0.67,206.97,206.96,0.03]
[1757311915961,55.42681773,206.97,206.96,0.03]
[1757311916138,16.99681773,206.97,206.96,0.03]
[1757311916337,40.31986919,206.97,206.96,0.03]
[1757311916740,37.9,206.97,206.96,0.03]
[1757311917052,40.31986919,206.97,206.96,0.03]
[1757311918360,41.68738219,206.97,206.96,0.03]
[1757311918655,41.66738219,206.97,206.96,0.03]
[1757311919854,37.88,206.97,206.96,0.03]
[1757311920036,37.88,206.97,206.96,0.75]
[1757311921275,0.06,206.97,206.96,0.75]
[1757311921432,37.86,206.97,206.96,5.58185156]
[1757311921640,37.86,206.97,206.96,4.53738219]
[1757311921838,37.86,206.97,206.96,0.75]
[1757311924363,37.86,206.97,206.96,5.58185156]
[1757311924956,37.86,206.97,206.96,9.36923375]
[1757311925263,0.06,206.97,206.96,22.96482776]
[1757311927458,0.06,206.97,206.96,66.51405321]
[1757311928553,0.06,206.97,206.96,146.61405321]
[1757311929365,0.06,206.97,206.96,142.82667102]
[1757311929551,0.06,206.97,206.96,146.61405321]
[1757311930864,0.06,207.0,206.99,39.59559401]
[1757311931051,0.06,207.0,206.99,43.3829762]
[1757311931250,0.06,207.0,206.99,124.1429762]
[1757311931970,0.06,207.0,206.99,44.0429762]
[1757311932972,0.06,207.0,206.99,48.87412746]
[1757311933348,0.06,207.0,206.99,34.61853345]
[1757311934172,0.06,207.0,206.98,8.61875292]
[1757311934371,0.06,207.02,206.99,18.0429762]
[1757311934544,0.06,207.02,207.01,17.3829762]
[1757311934960,0.06,207.02,207.01,22.8736607]
[1757311935874,0.06,207.02,207.01,24.80775639]
[1757311940372,0.06,207.02,207.01,104.90775639]
[1757311942484,0.06,207.02,207.01,133.94775639]
[1757311944574,0.06,207.02,207.01,100.4603742]
[1757311944881,0.67,207.02,207.0,0.03]
[1757311945075,0.06,207.02,207.01,26.0]
[1757311945658,0.67,207.02,207.01,26.0]
[1757311946080,0.67,207.02,207.0,26.03]
[1757311946308,0.61,207.01,207.0,26.03]
[1757311946587,0.61,207.01,207.0,0.03]
[1757311955501,41.54738219,207.02,207.0,0.03]
[1757311956102,42.15738219,207.02,207.0,0.03]
[1757311957265,0.61,207.01,207.0,0.03]
[1757311958999,4.39738219,207.01,207.0,0.03]
[1757311960876,4.45738219,207.01,207.0,0.03]
[1757311961494,3.84738219,207.01,207.0,0.03]
[1757311962892,4.45738219,207.01,207.0,0.03]
[1757311963193,3.84738219,207.01,207.0,0.03]
[1757311963395,9.28806669,207.01,207.0,0.03]
[1757311963781,46.90806669,207.01,207.0,0.03]
[1757311965497,43.1206845,207.01,207.0,0.03]
[1757311965702,46.90806669,207.01,207.0,0.03]
[1757311969487,43.1206845,207.01,207.0,0.03]
[1757311969687,46.92806669,207.01,207.0,0.03]
[1757311970906,9.28806669,207.01,207.0,0.03]
[1757311971092,46.92806669,207.01,207.0,0.03]
[1757311973093,46.31806669,207.01,207.0,0.03]
[1757311973500,3.84738219,207.01,207.0,0.69]
[1757311973682,41.48738219,207.01,207.0,0.03]
[1757311978404,40.12304987,207.01,207.0,0.03]
[1757311979788,40.10304987,207.01,207.0,0.03]
[1757311981224,2.48304987,207.01,207.0,0.69]
[1757311981404,37.68,207.01,207.0,0.69]
[1757311982502,0.06,207.01,207.0,0.69]
[1757311982703,37.68,207.01,207.0,0.69]
[1757311983228,37.68,207.01,207.0,7.94396774]
[1757311983229,0.06,207.01,207.0,7.94396774]
[1757311985634,3.09304987,207.01,207.0,0.03]
[1757311986733,17.61593385,207.01,207.0,0.03]
[1757311988729,45.54373437,207.01,207.0,0.03]
[1757311991019,55.23593385,207.01,207.0,0.03]
[1757311992941,44.93373437,207.01,207.0,0.03]
[1757311993437,45.54373437,207.01,207.0,0.03]
[1757311994137,44.93373437,207.01,207.0,0.03]
[1757311994845,2.48304987,207.01,207.0,0.03]
[1757311995009,70.93373437,207.01,207.0,0.03]
[1757311995341,66.10304987,207.01,207.0,0.03]
[1757311995539,70.93373437,207.01,207.0,0.03]
[1757311999239,63.68,207.01,207.0,0.03]
[1757311999544,2.48304987,207.01,207.0,0.75]
[1757311999746,52.29877338,207.01,207.0,0.75]
[1757311999945,14.67877338,207.01,207.0,0.75]
[1757312000154,52.29877338,207.01,207.0,0.75]
[1757312001028,57.12945788,207.01,207.0,0.03]
[1757312001423,67.43165736,207.01,207.0,0.03]
[1757312002945,66.82165736,207.01,207.0,0.03]
[1757312003153,67.43165736,207.01,207.0,0.03]
[1757312003646,54.70640801,207.01,207.0,0.03]
[1757312003821,66.82165736,207.01,207.0,0.03]